Cogmind - Beta 16 @@@ ROGUE MODE // 2025.11.30 @ 18:09:52 Player: unq Result: Destroyed by D-53 Grenadier with Mini Grenade Launcher Performance ------------- Evolutions (0) 0 Regions Visited (2) 400 Robots Destroyed (31) 155 Value Destroyed (543) 543 Prototype IDs (2) 40 Alien Tech Used (0) 0 Bonus (0) 0 TOTAL SCORE: 1138 Bonus ------- None Cogmind --------- Core Integrity 0/250 Matter 243/300 Energy 108/125 System Corruption 0% Temperature Cool (0) Movement Treading (240) Ox1 Location -10/Mines Parts ------- > --- POWER (1) -------- Light Ion Engine > --- PROPULSION (2) --- Light Treads > --- UTILITY (2) ------ Large Storage Unit Utility Shielding > --- WEAPON (2) ------- Subdweller Machine Gun > --- INVENTORY (15) --- Light Treads Light Treads High-capacity Storage Unit Seismic Detector Targeting Computer EM Pulse Gun Medium Laser Medium Laser Light Cannon Light Cannon Datajack Mining Laser Peak State ------------ > --- POWER ------------ Ion Engine > --- PROPULSION ------- Light Treads Light Treads > --- UTILITY ---------- Large Storage Unit Seismic Detector > --- WEAPON ----------- Subdweller Machine Gun Subdweller Machine Gun > --- INVENTORY -------- Light Ion Engine Light Treads Light Treads High-capacity Storage Unit Targeting Computer Utility Shielding EM Pulse Gun Medium Laser Medium Laser Light Cannon Light Cannon Datajack Mining Laser [Rating: 10] Favorites ----------- Power Ion Engine Engine Ion Engine Propulsion Light Treads Treads Light Treads Leg Aluminum Leg Utility Large Storage Unit Device Seismic Detector Storage Large Storage Unit Protection Utility Shielding Weapon Medium Laser Energy Gun Medium Laser Ballistic Gun Subdweller Machine Gun Ballistic Cannon Light Cannon Special Weapon Mining Laser Build | -11 -10 -10 ------- Run | Yrd Mat Min Slots Evolved . | . . . Power . | . . . Propulsion . | . . . Utility . | . . . Weapon . | . . . Parts Attached 24 | 8 13 3 Power 4 | 1 2 1 Engine 4 | 1 2 1 Core . | . . . Reactor . | . . . Propulsion 6 | 2 3 1 Treads 4 | . 3 1 Leg 2 | 2 . . Wheel . | . . . Hover . | . . . Flight . | . . . Utility 5 | 2 3 . Device 2 | 1 1 . Storage 2 | 1 1 . Processor . | . . . Hackware . | . . . Protection 1 | . 1 . Artifact . | . . . Weapon 9 | 3 5 1 Energy Gun 3 | 3 . . Energy Cannon . | . . . Ballistic Gun 3 | . 2 1 Ballistic Cannon 1 | . 1 . Launcher . | . . . Special Weapon 2 | . 2 . Impact Weapon . | . . . Slashing Weapon . | . . . Piercing Weapon . | . . . Special Melee Weapon . | . . . Unidentified Prototypes . | . . . Parts Lost 7 | . 3 4 Power 2 | . 1 1 Propulsion 2 | . 1 1 Utility 1 | . 1 . Weapon 2 | . . 2 Highest Loss Streak 4 | . 1 4 To Critical Strikes . | . . . Average Backups 11 | 3 11 13 Power . | . . 1 Propulsion 2 | 1 2 2 Utility 2 | . 2 3 Weapon 5 | 1 4 6 Tool/Special . | . . . Unused Backups 7 | . 1 6 Power . | . . . Propulsion 1 | . . 1 Utility 2 | . . 2 Weapon 3 | . 1 2 Tool/Special 1 | . . 1 Average Slot Usage (%) 99 | . 99 99 Engine 13 | . 13 14 Treads 24 | . 23 27 Leg 3 | . 4 . Device 11 | . 12 6 Storage 14 | . 14 14 Protection 2 | . 1 7 Energy Gun 9 | . 11 . Ballistic Gun 12 | . 12 14 Ballistic Cannon 4 | . 1 13 Special Weapon 2 | . 2 . Peak Build Rating 10 | 7 9 10 Average Rating 8 | 5 8 9 On Entrance 5 | . 7 9 Avg Prop Armor Cover (%) . | . . . Naked Turns . | . . . Heaviest Build 33 | 15 33 33 Greatest Support 40 | 20 40 40 Greatest Overweight (x) . | . . . Average Overweight (x) . | . . . Largest Inventory Capacity 15 | 8 15 15 Average Capacity 13 | 7 13 15 Most Carried 15 | 5 15 14 Average Carried 11 | 3 11 13 Final Capacity 15 | 8 15 15 Final Carried 14 | 5 14 12 Class Distribution -------------------- 100% | Mutant Dominant Class ---------------- Mutant | -10/Materials Mutant | -10/Mines Resources | -11 -10 -10 ----------- Run | Yrd Mat Min Matter Collected 701 | 263 406 32 Remotely . | . . . Salvage Created 839 | 136 683 20 Parts 44 | 11 33 . Haulers Intercepted 2 | . 2 . Recyclers Shooed 3 | . 3 . Parts Field Recycled . | . . . Retrieved Matter . | . . . Parts Self-Destructed . | . . . Prevented . | . . . Parts Restored . | . . . Kills | -11 -10 -10 ------- Run | Yrd Mat Min Combat Hostiles Destroyed 21 | . 18 3 Guns 16 | . 15 1 Cannons 5 | . 3 2 Classes Destroyed 10 | 2 8 . Worker 1 | . 1 . Tunneler 3 | 3 . . Hauler 2 | . 2 . Recycler 1 | 1 . . Mechanic 1 | . 1 . Operator 1 | . 1 . Watcher 1 | . 1 . Swarmer 11 | . 8 3 Grunt 9 | . 9 . Subdweller 1 | . 1 . Best Kill Streak 6 | 3 6 3 Combat Bots Only 6 | . 6 3 Max Kills in Single Turn 1 | 1 1 1 Gunslinging . | . . . Exploded . | . . . Melee . | . . . Uniques/NPCs Destroyed . | . . . Combat | -11 -10 -10 -------- Run | Yrd Mat Min Hostile Shots Fired 126 | . 92 34 Missed 31 | . 24 7 Hits 95 | . 68 27 Projectile 95 | . 68 27 AOE 12 | . . 12 Damage Taken 1272 | . 679 593 Core 254 | . 79 175 Absorbed by Shields . | . . . Redirected to Shielding 3 | . 3 . Regen/Repaired (Parts) 58 | . 58 . Core Remaining (%) 100 | 100 . . Volleys Fired 113 | 11 91 11 Largest 2 | 2 2 2 Hottest 150 | 100 150 60 Shots Fired 216 | 22 172 22 Gun 175 | 22 140 13 Cannon 32 | . 23 9 Launcher . | . . . Special 9 | . 9 . Kinetic 115 | . 93 22 Thermal 101 | 22 79 . Explosive . | . . . Electromagnetic . | . . . Robot Hit Streak 17 | 8 17 3 Robot Miss Streak 5 | 2 5 3 Penetration Max . | . . . Secondary Targets . | . . . Shots Hit Robots 120 | 15 95 10 Core Hits 45 | 5 35 5 Critical Kills . | . . . Critical Parts Destroyed 1 | . 1 . Critical Strikes 7 | . 7 . Burn 5 | . 5 . Destroy 1 | . 1 . Blast 1 | . 1 . Melee Attacks . | . . . Impact . | . . . Slashing . | . . . Piercing . | . . . Sneak Attacks . | . . . Combat Hostiles . | . . . Follow-up Attacks . | . . . Damage Inflicted 1694 | 212 1277 205 Guns 1462 | 212 1117 133 Cannons 188 | . 120 68 Explosions . | . . . Melee . | . . . Ramming 20 | . 16 4 Kinetic 939 | . 738 201 Thermal 735 | 212 523 . Explosive . | . . . Electromagnetic . | . . . Impact . | . . . Slashing . | . . . Piercing . | . . . Highest Corruption . | . . . Average Corruption . | . . . Corruption Purged . | . . . Corruption Blocked . | . . . Overload Shots . | . . . Overflow Damage 13 | . . 13 Projectiles 13 | . . 13 Explosions . | . . . Melee . | . . . Knockbacks 3 | . 3 . Impact . | . . . Kinetic 3 | . 3 . Secondary . | . . . Self-Inflicted Damage . | . . . Shots . | . . . Rammed 5 | . 2 3 Targets Rammed 6 | . 3 3 Kicked . | . . . Crushed 1 | . 1 . Highest Temperature 390 | 390 294 . Average Temperature 80 | 180 62 . Received Heat Transfer 180 | . 180 . Effects 3 | 3 . . Energy Bleed 1 | 1 . . Interference 2 | 2 . . Siege Activations . | . . . Martial Activations . | . . . Shielding Activations . | . . . Robots Disrupted . | . . . Combat Hostiles . | . . . Robots Corrupted . | . . . Combat Hostiles . | . . . Parts Fried . | . . . Impact Corruptions . | . . . Robots Melted 1 | . 1 . Combat Hostiles . | . . . Parts Melted 7 | 1 6 . Heat Transferred 2529 | 629 1900 . Parts Sabotaged . | . . . Parts Stolen . | . . . Parts Stripped . | . . . Power Chain Reactions . | . . . Alert | -11 -10 -10 ------- Run | Yrd Mat Min Maximum Alert Level 1 | . 1 . Low Security (%) 97 | 100 96 100 Level 1 2 | . 3 . Level 2 . | . . . Level 3 . | . . . Level 4 . | . . . Level 5 . | . . . High Security . | . . . Max Security . | . . . Peak Influence 238 | 10 238 88 Initial 88 | . . 88 Average 36 | 1 41 31 Influence Increases 702 | 20 610 72 Destroy 0b10 Robot/C 400 | . 340 60 Destroy 0b10 Robot/NC 50 | 20 30 . Destroy Leader 66 | . 56 10 Successful Hack 24 | . 24 . Select Force Hacks 60 | . 60 . Disable Machine 15 | . 15 . Destroy Structure 12 | . 10 2 Lose Combat Pursuer 75 | . 75 . Influence Decreases 702 | 20 381 301 Entered New Map 141 | . . 141 Time Decay 531 | 20 352 159 Lost Part 30 | . 29 1 Squads Dispatched 6 | . 6 . Investigation 3 | . 3 . Extermination . | . . . Reinforcement 3 | . 3 . Assault . | . . . Garrison . | . . . Intercept . | . . . Searches Triggered . | . . . Construction Impeded . | . . . Haulers Reinforced . | . . . Active Scanning Responses . | . . . Cargo Convoy Interrupts . | . . . Stealth | -11 -10 -10 --------- Run | Yrd Mat Min Distress Signals 4 | . 4 . Communications Jammed . | . . . Distress Signals . | . . . Times Spotted 38 | . 32 6 Peak Tracking Total 4 | . 4 3 Tactical Retreats 5 | . 5 . Traps | -11 -10 -10 ------- Run | Yrd Mat Min Traps Triggered . | . . . Indirectly . | . . . Trap Hack Attempts . | . . . Triggered . | . . . Disarmed . | . . . Reprogrammed . | . . . Reused . | . . . Traps Extracted . | . . . Installed . | . . . Triggered . | . . . Machines | -11 -10 -10 ---------- Run | Yrd Mat Min Machines Disabled 1 | . 1 . Max in Single Turn 1 | . 1 . Machines Repaired . | . . . Machines Dismantled . | . . . Machines Sabotaged . | . . . Overloaded Fab Kills . | . . . Hacking | -11 -10 -10 --------- Run | Yrd Mat Min Machines Accessed 9 | . 9 . Terminals 6 | . 6 . Fabricators . | . . . Repair Stations 1 | . 1 . Recycling Units 2 | . 2 . Scanalyzers . | . . . Garrison Access . | . . . Total Hacks 27 | . 27 . Successful 19 | . 19 . Failed 8 | . 8 . Catastrophic . | . . . Database Lockouts . | . . . Manual 16 | . 16 . Terminals 21 | . 21 . Fabricators . | . . . Repair Stations 3 | . 3 . Recycling Units 3 | . 3 . Scanalyzers . | . . . Garrison Access . | . . . Terminal Hacks 6 | . 6 . Prototype ID Bank 1 | . 1 . Terminal Index 1 | . 1 . Locate Traps 2 | . 2 . Transport Status 1 | . 1 . Registered Components 1 | . 1 . Fabricator Hacks . | . . . Repair Station Hacks 3 | . 3 . Scan Component 2 | . 2 . Repair 1 | . 1 . Recycling Unit Hacks 1 | . 1 . Retrieve Components 1 | . 1 . Scanalyzer . | . . . Garrison Access Hacks . | . . . Unauthorized Hacks 9 | . 9 . Terminals 7 | . 7 . Botnet 2 | . 2 . Skim 5 | . 5 . Fabricators . | . . . Repair Stations . | . . . Recycling Units 2 | . 2 . Tunnel 2 | . 2 . Scanalyzers . | . . . Garrison Access . | . . . Data Cores Recovered . | . . . Used . | . . . Hacking Detections 6 | . 6 . Full Trace Events 1 | . 1 . Feedback Events . | . . . Feedback Blocked . | . . . Robot Schematics Acquired . | . . . Robots Built . | . . . Authchips . | . . . Time . | . . . Total Robot Build Rating . | . . . Part Schematics Acquired . | . . . Parts Built . | . . . Authchips . | . . . Time . | . . . Total Part Build Rating . | . . . Part Studies Acquired . | . . . Parts Repaired 1 | . 1 . Time 26 | . 26 . Parts Recycled . | . . . Recycled Matter . | . . . Retrieved Matter . | . . . Retrieved Components 10 | . 10 . Parts Scanalyzed . | . . . Part Schematics Acquired . | . . . Parts Damaged . | . . . Bothacking | -11 -10 -10 ------------ Run | Yrd Mat Min Used RIF Installer . | . . . Robots Hacked . | . . . Non-combat . | . . . Combat . | . . . Robot Hacks Applied . | . . . Relay Couplers Released . | . . . Fabnet Peak Effective % . | . . . Robots Rewired . | . . . Allies Hacked . | . . . Hacks Repelled . | . . . Allies | -11 -10 -10 -------- Run | Yrd Mat Min Total Allies . | . . . Largest Group . | . . . Highest-Rated Group . | . . . Highest-Rated Ally . | . . . Total Orders . | . . . Ally Attacks . | . . . Total Damage . | . . . Kills . | . . . Allies Corrupted . | . . . Allies Melted . | . . . Intel | -11 -10 -10 ------- Run | Yrd Mat Min Active Infowar (turns) 1873 | 62 1589 222 Seismic 1873 | 62 1589 222 Robot Analysis Total . | . . . Derelict Logs Recovered . | . . . Drone Launches . | . . . Drone Recoveries . | . . . Exploration | -11 -10 -10 ------------- Run | Yrd Mat Min Turns Passed 2349 | 149 1765 435 Spaces Moved 1183 | 78 861 244 Core 3 | 3 . . Treads 965 | . 721 244 Legs 215 | 75 140 . Wheels . | . . . Hover . | . . . Flight . | . . . Fastest Speed 50 | 50 120 160 Average Speed 152 | 117 153 160 Slowest Speed 160 | 120 160 160 Overloaded Moves . | . . . Propulsion Burnouts . | . . . Robots Hopped . | . . . Potential Cave-ins . | . . . Cave-ins Triggered . | . . . Exploration Rate (%) 53 | 5 96 60 Regions Visited 2 Branch Regions 1 Pre-discovered Areas 2 | . 2 . Known Exits Taken . | . . . Unknown Exits Taken 2 | 1 1 . Scrap Searched 1 | . . 1 Spaces Dug 5 | . 5 . Terrain Destroyed 8 | . 6 2 Melee . | . . . Projectile 8 | . 6 2 AOE . | . . . Terrain Rammed . | . . . Walls Destroyed . | . . . Machines Disabled . | . . . Actions | -11 -10 -10 --------- Run | Yrd Mat Min Total 1494 | 110 1120 264 Wait 129 | 9 119 1 Move 1181 | 77 860 244 Hop . | . . . Pick Up 20 | 4 16 . Fast Attach 10 | 8 2 . Attach 6 | . 4 2 Detach 3 | 1 2 . Swap 18 | . 15 3 Drop 8 | . 8 . Fire 113 | 11 91 11 Melee . | . . . Ram . | . . . Kick . | . . . Crush 6 | . 3 3 Escape Stasis . | . . . Rewire . | . . . Trap . | . . . Miscellaneous . | . . . Route ------- -11/Scrapyard -10/Materials (discovered 4 exits: [*Mat x2] / [*Min x2]) -10/Mines (discovered 2 exits: [*Mat x2]) History --------- Turn | Location | Event 9 | -11/Scrapyard | Discovered new exit (range 14) 150 | -11/Scrapyard | Entered Materials 315 | -10/Materials | Build established: Mutant 763 | -10/Materials | Discovered new exit (range 7) 859 | -10/Materials | Discovered new exit (range 7) 950 | -10/Materials | Derelicts attacked the area 1194 | -10/Materials | Discovered new exit (range 6) 1250 | -10/Materials | Repaired Med. Laser 1434 | -10/Materials | Discovered new exit (range 15) 1915 | -10/Materials | Entered Mines 2241 | -10/Mines | Discovered new exit (range 15) 2318 | -10/Mines | Discovered new exit (range 12) 2327 | -10/Mines | Assembled infested the area 2347 | -10/Mines | Core integrity fell below 50% 2349 | -10/Mines | Core integrity fell below 20% 2350 | -10/Mines | Destroyed by D-53 Grenadier with Mini Grenade Launcher Last Messages --------------- 02267_ T-07 Excavator is excavating. 02274_ U-05 Engineer lays Concrete. 02276_ T-07 Excavator is excavating. 02276_ U-05 Engineer lays Concrete. 02278_ U-05 Engineer builds a Wall. 02280_ T-07 Excavator is excavating. 02282_ U-05 Engineer builds a Wall. 02285_ T-07 Excavator is excavating. 02318_ EXIT=FOUND 02327_ ALERT: Infestation in the mines, dispatching Demolisher response squad. 02341_ C-45 Heavy ARC bursts open, deploying its payload. 02341_ D-53 Grenadier unfolds itself. 02341_ Lgt. Cannon destroyed. 02343_ The unstable cave ceiling collapses. 02344_ K-01 Serf collects debris. 02344_ Ion Engine destroyed. 02348_ K-01 Serf collects debris. 02348_ Lgt. Treads destroyed. 02350_ Sub. Machine Gun destroyed. Map ----- +----------------------------------------------------+ | #?????????????????????????# #??????? | | ## #?????????????????????????# #??????? | | ## ##########?????????????????# #??????? | | ## #?????????????????# #??????? | | ############ #??????????????#### #??????? | | ##??????????# #??????????????# #??????? | | ##???????????# #??????######### #??????? | | #????????????# ######## #??????? | | ????????????# < #??????? | | ????????????########## ###### #??????? | | ????????????????????# #????## ####??????? | | ????????????????????# #?????# #?????????? | | ## ????????????????????# ####### #?????????? | | ?? ????????????????###### #?????????? | | ??????????????????## #; #########?????????? | | ??????????????????# k##????????????????? | | ??????????????????# d%d##???????????????? | | ??????????????????# ##??????????????? | | ??????????????????## #??????????????? | | ???????????????????## #??????????????? | | ????????????????????## ##??????????????? | | ?????????????????????# #????##########?? | | ??????????????????#### ##??# ##? | | ??????????????????# ### #? | | ??????????????????# #? | | ??????????????????# @ #?? | | ??????????????????# < #####??? | | ??????????????????# ###??????? | | ??????????????????# # ###????????? | | ??????????????????# ?## ### ##??????????? | | ??????????????????????#### #?####???????????? | | ?????????????????????????? ????????????????? | | ?????????????????????????? ????????????????? | | ?????????????????????????? #???????????????? | | ?????????????????????????? #???????????????? | | ?????????????????????????? ##???????????????? | | ?????????????????????????? #????????????????? | | ???????????????????????????##????????????????? | | ?????????????????????????????????????????????? | | ?????????????????????????????????????????????? | | ?????????????????????????????????????????????? | | ?????????????????????????????????????????????? | | ?????????????????????????????????????????????? | | ?????????????????????????????????????????????? | | ?????????????????????????????????????????????? | | ?????????????????????????????????????????????? | | ?????????????????????????????????????????????? | | ?????????????????????????????????????????????? | | ?????????????????????????????????????????????? | | ?????????????????????????????????????????????? | +----------------------------------------------------+ Best States ------------- Heat Dissipation 25 Energy Generation 10 Energy Capacity 250 Matter Stores 300 Matter Capacity 300 Sight Range 16 Terrain Scan Density 10 Utility Shielding 33 Evasion (%) 55 Recoil Reduction 2 Item Schematics ----------------- None Robot Schematics ------------------ None Fabricated ------------ Nothing Repaired ---------- Med. Laser | 17% | -10/Materials Studied --------- None Alien Tech Used ----------------- None Achievements -------------- None Challenges ------------ None Game ------ Seed DeflectorThrusterDrillbomb Manual? 0 Play Time 00:20:46 Cumulative 222.7 hours Start 2025.11.30 @ 17:50:55 End 2025.11.30 @ 18:09:52 Sessions 1 Manual Loads 0 Difficulty Rogue Special Mode None Game No. 73 Rogue 73 Adventurer 0 Explorer 0 Win Type - Total 1 Types 1/0/0/0/0/0/0/0/0/0 Lore% 53 Gallery% 51 Achievement% 40 Wizard Run 0 Options --------- Layout 0 ASCII 1 Keyboard 1 Movement Arrows Keybinds 0 Fullscreen 1 Font 28/Smallcaps Map View 72x54 Zoom Use 0% Tactical HUD 1 Map Filters NONE Filters NONE Steam 1 RUN: 32b7e656-7130-46cc-a137-6af74db05454